fUSD/lending_fUSD_20250806
["ID","MTS","AMOUNT","RATE_DAILY","PERIOD"]
[377556681,1754441513035,-400.0,0.00036438,14]
[377556682,1754441513045,-400.0,0.00036438,14]
[377556683,1754441513054,-150.64046842,0.00036438,14]
[377556684,1754441513073,-249.35953158,0.00036438,14]
[377556685,1754441513082,-400.0,0.00036438,14]
[377556686,1754441513092,-400.0,0.00036438,14]
[377556687,1754441513106,-400.0,0.00036438,14]
[377556688,1754441513117,-151.0,0.00036438,7]
[377556689,1754441513129,-400.0,0.00036438,14]
[377556690,1754441513140,-400.0,0.00036438,14]
[377556691,1754441513150,-1114.21,0.00036438,14]
[377556692,1754441513161,-173.30590467,0.00036438,14]
[377556693,1754441514358,-657.74755484,0.00018944,2]
[377556694,1754441514518,-832.33518967,0.00018944,2]
[377556695,1754441514528,-1490.0827445,0.00022368,2]
[377556696,1754441514537,-157.95038835,0.000274,2]
[377556697,1754441514547,-841.80510082,0.00032971,2]
[377556698,1754441514556,-211.47411252,0.00032971,2]
[377556699,1754441514565,-150.0,0.00034504,2]
[377556700,1754441514575,-150.0,0.00034531,2]
[377556701,1754441514584,-150.0,0.00034596,2]
[377556702,1754441514593,-150.0,0.00034623,2]
[377556703,1754441514604,-150.0,0.00034771,2]
[377556704,1754441514614,-150.0,0.00034807,2]
[377556705,1754441514623,-150.0,0.0003502,2]
[377556706,1754441514633,-150.0,0.00035109,2]
[377556707,1754441514643,-150.0,0.00035118,2]
[377556708,1754441514652,-150.0,0.00035161,2]
[377556709,1754441514662,-150.0,0.00035164,2]
[377556710,1754441514672,-181.09,0.0003518,2]
[377556711,1754441514681,-150.0,0.00035392,2]
[377556712,1754441514691,-150.0,0.00035422,2]
[377556713,1754441514701,-500.0,0.00035609,2]
[377556714,1754441514710,-400.0,0.00035616,14]
[377556715,1754441514719,-400.0,0.00035616,14]
[377556716,1754441514729,-150.0,0.00035638,7]
[377556717,1754441514739,-150.0,0.00035718,2]
[377556718,1754441514749,-150.0,0.0003575,2]
[377556719,1754441514758,-150.0,0.00035836,2]
[377556720,1754441514768,-150.0,0.00035851,2]
[377556721,1754441514778,-150.0,0.00035862,2]
[377556722,1754441514787,-150.0,0.00035873,2]
[377556723,1754441514797,-400.0,0.0003589,14]
[377556724,1754441514806,-150.0,0.00035904,2]
[377556725,1754441514815,-150.0,0.00035907,2]
[377556726,1754441514825,-150.0,0.00035908,2]
[377556727,1754441514834,-150.0,0.00035926,2]
[377556728,1754441514843,-150.0,0.00035928,2]
[377556729,1754441514854,-150.0,0.0003594,2]
[377556730,1754441515225,-150.0,0.00035951,2]
[377556731,1754441515251,-150.0,0.00035965,2]
[377556732,1754441515260,-150.0,0.00035972,2]
[377556733,1754441515269,-150.0,0.00035989,2]
[377556734,1754441515278,-150.0,0.00035991,2]
[377556735,1754441515287,-150.0,0.00035999,2]
[377556736,1754441515297,-150.0,0.00036027,2]
[377556737,1754441515306,-150.0,0.00036029,2]
[377556738,1754441515315,-150.0,0.00036043,2]
[377556739,1754441515324,-150.0,0.00036044,2]
[377556740,1754441515334,-150.0,0.00036058,2]
[377556741,1754441515343,-150.0,0.00036079,2]
[377556742,1754441515354,-150.0,0.00036088,2]
[377556743,1754441515363,-150.0,0.00036106,2]
[377556744,1754441515372,-150.0,0.00036107,2]
[377556745,1754441515382,-150.0,0.0003615,2]
[377556746,1754441515391,-206.68,0.00036157,3]
[377556747,1754441515401,-153.26,0.00036164,14]
[377556748,1754441515411,-226.69409533,0.00036438,14]
[377556749,1754441515420,-814.33,0.00036438,14]
[377556750,1754441515429,-874.07,0.00036438,14]
[377556751,1754441515439,-935.74,0.00036438,14]
[377556752,1754441515449,-151.0,0.00036438,7]
[377556753,1754441515458,-400.0,0.00036438,14]
[377556754,1754441515468,-1399.02,0.00036438,14]
[377556755,1754441515477,-1338.54,0.00036438,14]
[377556756,1754441515487,-400.0,0.00036438,14]
[377556757,1754441515496,-400.0,0.00036438,14]
[377556758,1754441515505,-151.0,0.00036438,7]
[377556759,1754441515515,-400.0,0.00036438,14]
[377556760,1754441515525,-400.0,0.00036438,14]
[377556761,1754441515534,-400.0,0.00036438,14]
[377556762,1754441515544,-400.0,0.00036438,14]
[377556763,1754441515554,-400.0,0.00036438,14]
[377556764,1754441515563,-423.27,0.00036438,14]
[377556765,1754441515573,-400.0,0.00036438,14]
[377556766,1754441515582,-979.05,0.00036438,14]
[377556767,1754441515592,-823.45,0.00036438,14]
[377556768,1754441515603,-789.19,0.00036438,14]
[377556769,1754441515613,-400.0,0.00036438,14]
[377556770,1754441515622,-400.0,0.00036438,14]
[377556771,1754441515632,-1122.04,0.00036438,14]
[377556772,1754441515642,-802.71,0.00036438,14]
[377556773,1754441515651,-400.0,0.00036438,14]
[377556774,1754441515660,-400.0,0.00036438,14]
[377556775,1754441515669,-400.0,0.00036438,14]
[377556776,1754441515678,-152.331021,0.00036438,14]
[377556777,1754441515689,-1607.43,0.00036438,14]
[377556778,1754441515699,-400.0,0.00036438,14]
[377556779,1754441515708,-400.0,0.00036438,14]
[377556780,1754441515718,-400.0,0.00036438,14]
[377556781,1754441515727,-1717.21,0.00036438,14]
[377556782,1754441515736,-1028.52,0.00036438,14]
[377556783,1754441515745,-166.357269,0.00036438,14]
[377556784,1754441515754,-956.75,0.00036438,14]
[377556785,1754441515764,-679.36,0.00036438,14]
[377556786,1754441515773,-426.65168755,0.00036438,14]
[377556787,1754441515782,-676.26,0.00036438,14]
[377556788,1754441515791,-400.0,0.00036438,14]
[377556789,1754441515800,-641.95,0.00036438,14]
[377556790,1754441515810,-731.88,0.00036438,14]
[377556791,1754441515820,-1224.34,0.00036438,14]
[377556792,1754441515829,-400.0,0.00036438,14]
[377556793,1754441515838,-440.58,0.00036438,14]
[377556794,1754441515847,-469.35,0.00036438,14]
[377556795,1754441515859,-400.0,0.00036438,14]
[377556796,1754441515869,-400.0,0.00036438,14]
[377556797,1754441515878,-400.0,0.00036438,14]
[377556798,1754441515887,-549.74,0.00036438,14]
[377556799,1754441515899,-400.0,0.00036438,14]
[377556800,1754441515909,-536.6,0.00036438,14]
[377556801,1754441515918,-695.16,0.00036438,14]
[377556802,1754441515929,-1141.67,0.00036438,14]
[377556803,1754441515939,-1493.32,0.00036438,14]
[377556804,1754441515949,-400.0,0.00036438,14]
[377556805,1754441515959,-400.0,0.00036438,14]
[377556806,1754441515969,-400.0,0.00036438,14]
[377556807,1754441515978,-570.53,0.00036438,14]
[377556808,1754441515987,-1543.2,0.00036438,14]
[377556809,1754441515997,-400.0,0.00036438,14]
[377556810,1754441516006,-453.83198919,0.00036438,14]
[377556811,1754441516016,-1891.46,0.00036438,14]
[377556812,1754441516026,-400.0,0.00036438,14]
[377556813,1754441516035,-400.0,0.00036438,14]
[377556814,1754441516045,-400.0,0.00036438,14]
[377556815,1754441516055,-405.53153859,0.00036438,14]
[377556816,1754441516065,-1292.64,0.00036438,14]
[377556817,1754441516074,-400.0,0.00036438,14]
[377556818,1754441516084,-497.59,0.00036438,14]
[377556819,1754441516093,-400.0,0.00036438,14]
[377556820,1754441516103,-426.13428398,0.00036438,14]
[377556821,1754441516112,-1257.77,0.00036438,14]
[377556822,1754441516122,-927.06,0.00036438,14]
[377556823,1754441516131,-508.26,0.00036438,14]
[377556824,1754441516141,-400.0,0.00036438,14]
[377556825,1754441516150,-1213.46,0.00036438,14]
[377556826,1754441516159,-400.0,0.00036438,14]
[377556827,1754441516169,-400.0,0.00036438,14]
[377556828,1754441516178,-1108.52,0.00036438,14]
[377556829,1754441516188,-400.0,0.00036438,14]
[377556830,1754441516198,-1190.34,0.00036438,14]
[377556831,1754441516208,-400.0,0.00036438,14]
[377556832,1754441516217,-1907.67,0.00036438,14]
[377556833,1754441516227,-458.13568102,0.00036438,14]
[377556834,1754441516238,-596.14,0.00036438,14]
[377556835,1754441516248,-400.0,0.00036438,14]
[377556836,1754441516258,-400.0,0.00036438,14]
[377556837,1754441516268,-400.0,0.00036438,14]
[377556838,1754441516278,-400.0,0.00036438,14]
[377556839,1754441516287,-2200.8,0.00036438,14]
[377556840,1754441516298,-846.73,0.00036438,14]
[377556841,1754441516307,-1119.45,0.00036438,14]
[377556842,1754441516317,-400.0,0.00036438,14]
[377556843,1754441516326,-400.0,0.00036438,14]
[377556844,1754441516336,-400.0,0.00036438,7]
[377556845,1754441516347,-400.0,0.00036438,14]
[377556846,1754441516356,-400.0,0.00036438,14]
[377556847,1754441516365,-400.0,0.00036438,14]
[377556848,1754441516375,-1009.76,0.00036438,14]
[377556849,1754441516384,-400.0,0.00036438,14]
[377556850,1754441516393,-1273.38,0.00036438,14]
[377556851,1754441516402,-2059.84,0.00036438,14]
[377556852,1754441516411,-400.0,0.00036438,14]
[377556853,1754441516420,-400.0,0.00036438,14]
[377556854,1754441516429,-1062.57,0.00036438,14]
[377556855,1754441516438,-830.1,0.00036438,14]
[377556856,1754441516448,-400.0,0.00036438,14]
[377556857,1754441516457,-400.0,0.00036438,14]
[377556858,1754441516467,-400.0,0.00036438,14]
[377556859,1754441516477,-400.0,0.00036438,14]
[377556860,1754441516486,-400.0,0.00036438,14]
[377556861,1754441516497,-225.82436648,0.00036438,14]
[377556862,1754441516507,-400.0,0.00036438,14]
[377556863,1754441516517,-1966.69,0.00036438,14]
[377556864,1754441516526,-400.0,0.00036438,14]
[377556865,1754441516535,-400.0,0.00036438,14]
[377556866,1754441516544,-506.27,0.00036438,14]
[377556867,1754441516553,-400.0,0.00036438,14]
[377556868,1754441516563,-400.0,0.00036438,14]
[377556869,1754441516572,-1564.62,0.00036438,14]
[377556870,1754441516581,-2209.65,0.00036438,14]
[377556871,1754441516591,-400.0,0.00036438,14]
[377556872,1754441516601,-427.55,0.00036438,14]
[377556873,1754441516611,-549.3,0.00036438,14]
[377556874,1754441516620,-400.0,0.00036438,14]
[377556875,1754441516630,-400.0,0.00036438,14]
[377556876,1754441516639,-400.0,0.00036438,14]
[377556877,1754441516649,-400.0,0.00036438,14]
[377556878,1754441516659,-400.0,0.00036438,14]
[377556879,1754441516669,-485.77,0.00036438,14]
[377556880,1754441516678,-400.0,0.00036438,14]
[377556881,1754441516688,-825.57,0.00036438,14]
[377556882,1754441516698,-400.0,0.00036438,14]
[377556883,1754441516707,-1248.2,0.00036438,14]
[377556884,1754441516716,-507.76,0.00036438,14]
[377556885,1754441516726,-480.0,0.00036438,14]
[377556886,1754441516735,-854.64,0.00036438,14]
[377556887,1754441516746,-400.0,0.00036438,14]
[377556888,1754441516755,-1797.49,0.00036438,14]
[377556889,1754441516764,-632.73,0.00036438,14]
[377556890,1754441516774,-533.96,0.00036438,14]
[377556891,1754441516783,-614.87,0.00036438,14]
[377556892,1754441516802,-463.53437093,0.00036438,14]
[377556893,1754441516814,-1994.69,0.00036438,14]
[377556894,1754441516823,-175.5,0.00036438,7]
[377556895,1754441516833,-666.2,0.00036438,14]
[377556896,1754441516844,-400.0,0.00036438,14]
[377556897,1754441516855,-400.0,0.00036438,14]
[377556898,1754441516867,-400.0,0.00036438,14]
[377556899,1754441516876,-400.0,0.00036438,14]
[377556900,1754441516885,-175.5,0.00036438,7]
[377556901,1754441516894,-1840.58,0.00036438,14]
[377556902,1754441516905,-400.0,0.00036438,14]
[377556903,1754441516914,-512.97,0.00036438,14]
[377556904,1754441516924,-400.0,0.00036438,14]
[377556905,1754441516933,-766.55,0.00036438,14]
[377556906,1754441516943,-400.0,0.00036438,14]
[377556907,1754441516953,-400.0,0.00036438,14]
[377556908,1754441516962,-631.05,0.00036438,14]
[377556909,1754441516971,-964.41,0.00036438,14]
[377556910,1754441516981,-400.0,0.00036438,14]
[377556911,1754441516990,-151.0,0.00036438,7]
[377556912,1754441516999,-400.0,0.00036438,14]
[377556913,1754441517009,-400.0,0.00036438,14]
[377556914,1754441517019,-400.0,0.00036438,14]
[377556915,1754441517029,-3265.04,0.00036438,14]
[377556916,1754441517038,-400.0,0.00036438,14]
[377556917,1754441517047,-400.0,0.00036438,14]
[377556918,1754441517056,-400.0,0.00036438,14]
[377556919,1754441517066,-920.23,0.00036438,14]
[377556920,1754441517076,-1923.98,0.00036438,14]
[377556921,1754441517085,-400.0,0.00036438,14]
[377556922,1754441517095,-400.0,0.00036438,14]
[377556923,1754441517105,-1946.53,0.00036438,14]
[377556924,1754441517114,-400.0,0.00036438,14]
[377556925,1754441517124,-514.46,0.00036438,14]
[377556926,1754441517134,-478.45,0.00036438,14]
[377556927,1754441517144,-650.99,0.00036438,14]
[377556928,1754441517154,-400.0,0.00036438,14]
[377556929,1754441517163,-2412.04,0.00036438,14]
[377556930,1754441517173,-990.84,0.00036438,14]
[377556931,1754441517183,-2190.51,0.00036438,14]
[377556932,1754441517192,-1416.57,0.00036438,14]
[377556933,1754441517202,-521.05,0.00036438,14]
[377556934,1754441517212,-581.53,0.00036438,14]
[377556935,1754441517221,-400.0,0.00036438,14]
[377556936,1754441517231,-526.05,0.00036438,14]
[377556937,1754441517240,-400.0,0.00036438,14]
[377556938,1754441517250,-1498.58,0.00036438,14]
[377556939,1754441517260,-400.0,0.00036438,14]
[377556940,1754441517269,-400.0,0.00036438,14]
[377556941,1754441517279,-400.0,0.00036438,14]
[377556942,1754441517289,-1650.56,0.00036438,14]
[377556943,1754441517299,-1014.39,0.00036438,14]
[377556944,1754441517308,-400.0,0.00036438,14]
[377556945,1754441517317,-400.0,0.00036438,14]
[377556946,1754441517326,-1875.14,0.00036438,14]
[377556947,1754441517336,-1715.69,0.00036438,14]
[377556948,1754441517346,-771.72,0.00036438,14]
[377556949,1754441517356,-400.0,0.00036438,14]
[377556950,1754441517365,-836.78,0.00036438,14]
[377556951,1754441517375,-1849.5,0.00036438,14]
[377556952,1754441517384,-400.0,0.00036438,14]
[377556953,1754441517393,-400.0,0.00036438,14]
[377556954,1754441517403,-400.0,0.00036438,14]
[377556955,1754441517412,-529.89,0.00036438,14]
[377556956,1754441517421,-400.0,0.00036438,14]
[377556957,1754441517430,-1047.53,0.00036438,14]
[377556958,1754441517439,-1752.33,0.00036438,14]
[377556959,1754441517448,-1191.56,0.00036438,14]
[377556960,1754441517458,-563.85,0.00036438,14]
[377556961,1754441517468,-1624.0,0.00036438,14]
[377556962,1754441517477,-1200.48,0.00036438,14]
[377556963,1754441517487,-400.0,0.00036438,14]
[377556964,1754441517502,-400.0,0.00036438,14]
[377556965,1754441517511,-1116.23,0.00036438,14]
[377556966,1754441517523,-1360.82,0.00036438,14]
[377556967,1754441517533,-400.0,0.00036438,14]
[377556968,1754441517543,-1297.93,0.00036438,14]
[377556969,1754441517553,-1055.87,0.00036438,14]
[377556970,1754441517562,-1402.99,0.00036438,14]
[377556971,1754441517572,-1917.5,0.00036438,14]
[377556972,1754441517582,-400.0,0.00036438,14]
[377556973,1754441517591,-400.0,0.00036438,14]
[377556974,1754441517601,-400.0,0.00036438,14]
[377556975,1754441517610,-400.0,0.00036438,14]
[377556976,1754441517620,-433.34,0.00036438,14]
[377556977,1754441517629,-400.0,0.00036438,14]
[377556978,1754441517638,-400.0,0.00036438,14]
[377556979,1754441517648,-1094.1,0.00036438,14]
[377556980,1754441517657,-400.0,0.00036438,14]
[377556981,1754441517666,-435.5,0.00036438,14]
[377556982,1754441517676,-1461.24,0.00036438,14]
[377556983,1754441517685,-1272.63,0.00036438,14]
[377556984,1754441517904,-400.0,0.00036438,14]
[377556985,1754441517914,-400.0,0.00036438,14]
[377556986,1754441517923,-452.97,0.00036438,14]
[377556987,1754441517933,-400.0,0.00036438,14]
[377556988,1754441517943,-400.0,0.00036438,14]
[377556989,1754441517953,-1291.48,0.00036438,14]
[377556990,1754441517962,-400.0,0.00036438,14]
[377556991,1754441517971,-1820.35,0.00036438,14]
[377556992,1754441517980,-498.68,0.00036438,14]
[377556993,1754441517990,-557.47,0.00036438,14]
[377556994,1754441517998,-809.74,0.00036438,14]
[377556995,1754441518008,-400.0,0.00036438,14]
[377556996,1754441518017,-848.54,0.00036438,14]
[377556997,1754441518026,-400.0,0.00036438,14]
[377556998,1754441518035,-400.0,0.00036438,14]
[377556999,1754441518044,-1559.39,0.00036438,14]
[377557000,1754441518054,-400.0,0.00036438,14]
[377557001,1754441518063,-1085.14,0.00036438,14]
[377557002,1754441518073,-400.0,0.00036438,14]
[377557003,1754441518082,-1795.99,0.00036438,14]
[377557004,1754441518091,-845.21,0.00036438,14]
[377557005,1754441518101,-400.0,0.00036438,14]
[377557006,1754441518110,-531.77,0.00036438,14]
[377557007,1754441518120,-1614.31,0.00036438,14]
[377557008,1754441518129,-1854.06,0.00036438,14]
[377557009,1754441518144,-400.0,0.00036438,14]
[377557010,1754441518154,-400.0,0.00036438,14]
[377557011,1754441518164,-1761.8,0.00036438,14]
[377557012,1754441518174,-352.40006392,0.00036438,14]
[377557013,1754441518184,-400.0,0.00036438,14]
[377557014,1754441518193,-417.98,0.00036438,14]
[377557015,1754441518204,-319.0069944,0.00036438,14]
[377557016,1754441518214,-636.74,0.00036438,14]
[377557017,1754441518229,-400.0,0.00036438,14]
[377557018,1754441518244,-400.0,0.00036438,14]
[377557019,1754441518256,-400.0,0.00036438,14]
[377557020,1754441518267,-400.0,0.00036438,14]
[377557021,1754441518278,-962.29,0.00036438,14]
[377557022,1754441518289,-400.0,0.00036438,14]
[377557023,1754441518299,-400.0,0.00036438,14]
[377557024,1754441518309,-575.52,0.00036438,14]
[377557025,1754441518319,-895.88,0.00036438,14]
[377557026,1754441518328,-985.83,0.00036438,14]
[377557027,1754441518337,-763.72,0.00036438,14]
[377557028,1754441518348,-400.0,0.00036438,14]
[377557029,1754441518357,-400.0,0.00036438,14]
[377557030,1754441518367,-578.12,0.00036438,14]
[377557031,1754441518376,-400.0,0.00036438,14]
[377557032,1754441518387,-1133.64,0.00036438,14]
[377557033,1754441518395,-400.0,0.00036438,14]
[377557034,1754441518404,-151.0,0.00036438,2]
[377557035,1754441518413,-491.91,0.00036438,14]
[377557036,1754441518423,-2061.36,0.00036438,14]
[377557037,1754441518432,-1194.56,0.00036438,14]
[377557038,1754441518442,-2206.93,0.00036438,14]
[377557039,1754441518451,-400.0,0.00036438,14]
[377557040,1754441518460,-997.7,0.00036438,14]
[377557041,1754441518470,-424.18,0.00036438,14]
[377557042,1754441518479,-400.0,0.00036438,14]
[377557043,1754441518488,-1285.31,0.00036438,14]
[377557044,1754441518497,-501.13,0.00036438,14]
[377557045,1754441518506,-762.45,0.00036438,14]
[377557046,1754441518518,-400.0,0.00036438,14]
[377557047,1754441518527,-400.0,0.00036438,14]
[377557048,1754441518536,-290.13,0.00036438,14]
[377557049,1754441518545,-666.76,0.00036438,14]
[377557050,1754441518555,-619.76,0.00036438,14]
[377557051,1754441518564,-400.0,0.00036438,14]
[377557052,1754441518574,-1281.53,0.00036438,14]
[377557053,1754441518584,-400.0,0.00036438,14]
[377557054,1754441518593,-400.0,0.00036438,14]
[377557055,1754441518604,-1798.71,0.00036438,14]
[377557056,1754441518614,-400.0,0.00036438,14]
[377557057,1754441518623,-477.03,0.00036438,14]
[377557058,1754441518633,-722.2,0.00036438,14]
[377557059,1754441518643,-400.0,0.00036438,14]
[377557060,1754441518652,-2901.82,0.00036438,14]
[377557061,1754441518662,-1561.04,0.00036438,14]
[377557062,1754441518671,-404.98,0.00036438,14]
[377557063,1754441518680,-400.0,0.00036438,14]
[377557064,1754441518690,-2115.61,0.00036438,14]
[377557065,1754441518699,-1101.95,0.00036438,14]
[377557066,1754441518708,-400.0,0.00036438,14]
[377557067,1754441518717,-400.0,0.00036438,14]
[377557068,1754441518727,-527.68041438,0.00036438,14]
[377557069,1754441518736,-644.6,0.00036438,14]
[377557070,1754441518745,-933.92,0.00036438,14]
[377557071,1754441518754,-400.0,0.00036438,14]
[377557072,1754441518764,-1062.27,0.00036438,14]
[377557073,1754441518773,-347.62765637,0.00036438,14]
[377557074,1754441518913,-150.0,0.00035971,2]
[377557075,1754441518923,-150.0,0.00036054,2]
[377557076,1754441518934,-150.0,0.00036077,2]
[377557077,1754441518946,-138.0,0.00036102,2]
[377557079,1754441552619,943.0970071,0.00017856,2]
[377557080,1754441552643,56.9029929,0.00017856,2]
[377557081,1754441573879,200.0,0.00017856,2]
[377557082,1754441615155,307.5,0.00030136,120]
[377557083,1754441621278,175.0,0.00017856,7]
[377557084,1754441663687,164.44,0.00017856,2]
[377557085,1754441665453,500.0,0.00030136,120]
[377557089,1754441760056,1000.0,0.00030137,120]
[377557092,1754441812085,-175.95917043,0.0001875,2]
[377557093,1754441814453,-74.04082957,0.0001875,2]
[377557094,1754441814477,-144.83483111,0.0001875,4]
[377557115,1754441959183,624.86,0.00015068,2]
[377557116,1754441959416,624.86,0.00016657,2]
[377557117,1754441960994,-156.82,0.00018246,2]
[377557119,1754441964353,-184.08149056,0.00018246,2]
[377557120,1754441967637,-182.94819629,0.00018246,2]
[377557121,1754441969981,-101.01031315,0.00018246,2]
[377557122,1754442000374,1500.0,0.00029988,120]
[377557124,1754442101978,150.0,0.00017856,2]
[377557125,1754442108169,152.25,0.00013699,2]
[377557129,1754442118144,452.32,0.00029234,120]
[377557130,1754442314783,310.69,0.00024658,120]
[377557131,1754442329565,150.89,0.00017856,2]
[377557136,1754442359622,376.7,0.00017856,2]
[377557137,1754442474426,-179.8775,0.00018529,2]
[377557138,1754442474448,-98.09263971,0.00018529,2]
[377557139,1754442481072,-193.14582718,0.00018529,2]
[377557140,1754442483745,-172.2058,0.00018529,2]
[377557141,1754442487370,-151.0,0.00018529,2]
[377557142,1754442490432,-216.68422333,0.00018529,2]
[377557143,1754442492102,-227.65271213,0.00018529,2]
[377557144,1754442493663,-178.632,0.00018529,2]
[377557145,1754442496629,-282.95393583,0.00018529,2]
[377557146,1754442498074,-461.82322736,0.00018529,2]
[377557147,1754442499977,-239.34151952,0.00018529,2]
[377557149,1754442503988,-151.0,0.00018529,2]
[377557150,1754442507200,-157.24,0.00018529,2]
[377557151,1754442509429,439.2,0.00017856,2]
[377557152,1754442510071,-151.0,0.00018529,2]
[377557153,1754442512427,-165.80323268,0.00018529,2]
[377557154,1754442513815,-116.92545108,0.00018529,2]
[377557155,1754442513841,-35.08338719,0.00018579,4]
[377557156,1754442516197,-151.0,0.00018579,4]
[377557157,1754442519833,-290.59753627,0.00018479,2]
[377557158,1754442521537,-181.56924,0.00018479,2]
[377557159,1754442523711,-181.56922904,0.00018479,2]
[377557160,1754442528074,-258.96369212,0.00018479,2]
[377557161,1754442530947,-222.19601726,0.00018479,2]
[377557162,1754442534060,-166.47909726,0.00018479,2]
[377557163,1754442535109,-154.17198448,0.00018479,2]
[377557164,1754442537317,-174.65327448,0.00018479,2]
[377557165,1754442539168,-105.81070896,0.00018479,2]
[377557166,1754442547965,372.708843,7.945e-05,2]
[377557168,1754442593689,-185.733,0.00018246,2]
[377557169,1754442593716,-108.45629104,0.00018246,2]
[377557170,1754442596972,-471.84319235,0.00018246,2]
[377557171,1754442600336,-154.92800686,0.00018246,2]
[377557172,1754442602720,-378.1,0.00018246,2]
[377557173,1754442606424,-193.38070165,0.00018246,2]
[377557174,1754442608585,-159.49749142,0.00018246,2]
[377557175,1754442610677,-196.4733362,0.00018246,2]
[377557176,1754442612460,-260.04811075,0.00018246,2]
[377557177,1754442614609,-77.27286973,0.00018246,2]
[377557178,1754442614632,-199.43975727,0.00018479,2]
[377557179,1754442617261,-153.37918463,0.00018479,2]
[377557180,1754442621884,-186.50044592,0.00018479,2]
[377557181,1754442623638,-270.3621978,0.00018479,2]
[377557182,1754442626261,-27.08216935,0.00018479,2]
[377557183,1754442626285,-355.67578773,0.00018496,2]
[377557184,1754442629417,-151.33,0.00018496,2]
[377557185,1754442631162,-329.75796721,0.00018496,2]
[377557186,1754442631184,-240.19225052,0.00018512,2]
[377557213,1754442632736,-596.57150442,0.00018512,2]
[377557214,1754442632745,-151.0,0.00018529,2]
[377557215,1754442632755,-399.57460673,0.00018529,2]
[377557216,1754442632784,-437.18914821,0.00018529,2]
[377557217,1754442632794,-813.91661281,0.00018579,4]
[377557218,1754442632803,-171.98609343,0.00018629,2]
[377557219,1754442632812,-222.38788228,0.00018729,2]
[377557220,1754442632821,-376.7,0.00018749,2]
[377557221,1754442632831,-1000.0,0.00018855,4]
[377557222,1754442632840,-2453.913744,0.00019543,2]
[377557223,1754442632850,-376.7,0.00019642,2]
[377557224,1754442632860,-624.86,0.00019835,2]
[377557225,1754442632869,-1000.0,0.00020071,4]
[377557226,1754442632879,-1200.0,0.00020085,2]
[377557227,1754442632889,-300.0,0.00020085,2]
[377557228,1754442632898,-501.7078296,0.00020086,2]
[377557229,1754442632907,-500.0,0.00020086,2]
[377557230,1754442632919,-500.0,0.00020086,2]
[377557231,1754442632930,-500.0,0.00020086,2]
[377557232,1754442632938,-500.0,0.00020086,2]
[377557233,1754442632948,-500.0,0.00020086,2]
[377557234,1754442632957,-365.2521704,0.00020086,2]
[377557235,1754442632966,-500.0,0.00020086,2]
[377557236,1754442632975,-500.0,0.00020086,2]
[377557237,1754442632985,-500.0,0.00020086,2]
[377557238,1754442632994,-500.0,0.00020086,2]
[377557239,1754442633004,-500.0,0.00020086,2]
[377557240,1754442633013,-500.0,0.00020086,2]
[377557241,1754442633024,-500.0,0.00020086,2]
[377557242,1754442633033,-500.0,0.00020086,2]
[377557243,1754442633042,-500.0,0.00020086,2]